[Event "Early-Titled-Tuesday-Blitz-October-03-2023"]
[Site "Chess.com"]
[Date "2023.10.03"]
[Round "2"]
[White "SAInt_666"]
[Black "MMAHDI2013"]
[Result "1/2-1/2"]
[WhiteElo "2659"]
[BlackElo "2391"]
[TimeControl "180+1"]
[EndTime "8:21:19 PDT"]
[Termination "Game drawn by stalemate"]

1. e4 {[%clk 0:03:00.9]} 1... c6 {[%clk 0:02:59.8]} 2. d4 {[%clk 0:03:01]} 2...
d5 {[%clk 0:03:00.7]} 3. exd5 {[%clk 0:03:01.1]} 3... cxd5 {[%clk 0:03:01.6]} 4.
Bd3 {[%clk 0:03:01.8]} 4... Nf6 {[%clk 0:03:02.1]} 5. c3 {[%clk 0:03:00.3]} 5...
Bg4 {[%clk 0:03:02.1]} 6. Qb3 {[%clk 0:03:00.4]} 6... Qc7 {[%clk 0:03:02.1]} 7.
h3 {[%clk 0:02:59.5]} 7... Bd7 {[%clk 0:03:01.4]} 8. Nf3 {[%clk 0:02:57.8]} 8...
e6 {[%clk 0:03:00.1]} 9. O-O {[%clk 0:02:46.7]} 9... Bd6 {[%clk 0:02:59.7]} 10.
Re1 {[%clk 0:02:47.1]} 10... Bc6 {[%clk 0:02:58.8]} 11. Bg5 {[%clk 0:02:46.8]}
11... Nbd7 {[%clk 0:02:54.5]} 12. Nbd2 {[%clk 0:02:45.8]} 12... O-O {[%clk
0:02:40.2]} 13. Re2 {[%clk 0:02:42.8]} 13... h6 {[%clk 0:02:35.8]} 14. Be3
{[%clk 0:02:42.2]} 14... Nh5 {[%clk 0:02:34]} 15. Rae1 {[%clk 0:02:36.1]} 15...
Nf4 {[%clk 0:02:31.4]} 16. Bxf4 {[%clk 0:02:36.1]} 16... Bxf4 {[%clk 0:02:32.3]}
17. Nf1 {[%clk 0:02:29.6]} 17... b5 {[%clk 0:02:18.9]} 18. a3 {[%clk 0:02:20.6]}
18... Rab8 {[%clk 0:02:17.7]} 19. Bb1 {[%clk 0:02:17.3]} 19... Rfc8 {[%clk
0:02:00.1]} 20. Qc2 {[%clk 0:02:15.6]} 20... Nf8 {[%clk 0:01:59.9]} 21. Ne5
{[%clk 0:02:11.2]} 21... Be8 {[%clk 0:01:23]} 22. g3 {[%clk 0:01:59.6]} 22...
Bxe5 {[%clk 0:01:22.1]} 23. Rxe5 {[%clk 0:02:00.5]} 23... a5 {[%clk 0:01:21.3]}
24. R5e3 {[%clk 0:01:26.2]} 24... b4 {[%clk 0:01:18.5]} 25. axb4 {[%clk
0:01:27.1]} 25... axb4 {[%clk 0:01:19.4]} 26. Nd2 {[%clk 0:01:27.8]} 26... bxc3
{[%clk 0:01:15.4]} 27. bxc3 {[%clk 0:01:23.5]} 27... Qb7 {[%clk 0:01:06.3]} 28.
Nf3 {[%clk 0:01:17.4]} 28... Qb2 {[%clk 0:01:03.2]} 29. Ne5 {[%clk 0:01:04.9]}
29... Qxc2 {[%clk 0:01:01.3]} 30. Bxc2 {[%clk 0:01:05.8]} 30... Rb2 {[%clk
0:00:58.5]} 31. Rc1 {[%clk 0:01:04.8]} 31... Ra2 {[%clk 0:00:50.9]} 32. Bd1
{[%clk 0:00:54.1]} 32... Ra3 {[%clk 0:00:49.1]} 33. c4 {[%clk 0:00:50.3]} 33...
Rxe3 {[%clk 0:00:48.3]} 34. fxe3 {[%clk 0:00:51.2]} 34... dxc4 {[%clk
0:00:48.8]} 35. Rxc4 {[%clk 0:00:51.6]} 35... Rxc4 {[%clk 0:00:47.4]} 36. Nxc4
{[%clk 0:00:52.5]} 36... Ng6 {[%clk 0:00:48]} 37. Nd6 {[%clk 0:00:50]} 37... Bc6
{[%clk 0:00:45.5]} 38. Kf2 {[%clk 0:00:50.6]} 38... Kf8 {[%clk 0:00:45.8]} 39.
Bc2 {[%clk 0:00:47.6]} 39... Ke7 {[%clk 0:00:45.3]} 40. Nc4 {[%clk 0:00:47.9]}
40... Nf8 {[%clk 0:00:44.5]} 41. h4 {[%clk 0:00:46.9]} 41... Be8 {[%clk
0:00:44.9]} 42. e4 {[%clk 0:00:45.5]} 42... Nd7 {[%clk 0:00:44.9]} 43. Ke3
{[%clk 0:00:45.7]} 43... Nf6 {[%clk 0:00:44.6]} 44. Bd1 {[%clk 0:00:44.2]} 44...
Bb5 {[%clk 0:00:43]} 45. Ne5 {[%clk 0:00:43.7]} 45... Nd7 {[%clk 0:00:42.7]} 46.
Nf3 {[%clk 0:00:42]} 46... Nf6 {[%clk 0:00:41.8]} 47. Nd2 {[%clk 0:00:42]} 47...
Nd7 {[%clk 0:00:41.5]} 48. Bf3 {[%clk 0:00:41.7]} 48... f6 {[%clk 0:00:40.2]}
49. Nb1 {[%clk 0:00:41.9]} 49... e5 {[%clk 0:00:38.6]} 50. d5 {[%clk 0:00:41.7]}
50... Kd6 {[%clk 0:00:38.9]} 51. Nc3 {[%clk 0:00:41.8]} 51... Bc4 {[%clk
0:00:38.9]} 52. Bg4 {[%clk 0:00:41.4]} 52... Nc5 {[%clk 0:00:38.6]} 53. Bf5
{[%clk 0:00:40.4]} 53... Nb3 {[%clk 0:00:38.3]} 54. Nd1 {[%clk 0:00:35.6]} 54...
Nd4 {[%clk 0:00:37.8]} 55. Bg6 {[%clk 0:00:33.7]} 55... f5 {[%clk 0:00:29.3]}
56. Nb2 {[%clk 0:00:32.8]} 56... Bb3 {[%clk 0:00:25.4]} 57. Bxf5 {[%clk
0:00:30.4]} 57... Bxd5 {[%clk 0:00:21.2]} 58. Bh3 {[%clk 0:00:22.9]} 58... Bb3
{[%clk 0:00:21.4]} 59. Bf1 {[%clk 0:00:22.6]} 59... Nc2+ {[%clk 0:00:21.2]} 60.
Kf2 {[%clk 0:00:21]} 60... Nd4 {[%clk 0:00:22.1]} 61. Bd3 {[%clk 0:00:20.8]}
61... Be6 {[%clk 0:00:21.3]} 62. Ke3 {[%clk 0:00:21]} 62... Ke7 {[%clk
0:00:21.6]} 63. Nd1 {[%clk 0:00:21.2]} 63... Kf6 {[%clk 0:00:21.4]} 64. Nc3
{[%clk 0:00:21.9]} 64... g5 {[%clk 0:00:21.4]} 65. Bb1 {[%clk 0:00:21.4]} 65...
gxh4 {[%clk 0:00:20.8]} 66. gxh4 {[%clk 0:00:22.3]} 66... Kg6 {[%clk 0:00:21]}
67. Kf2 {[%clk 0:00:22]} 67... Kh5 {[%clk 0:00:21.3]} 68. Kg3 {[%clk 0:00:22.7]}
68... Kg6 {[%clk 0:00:20.5]} 69. Bd3 {[%clk 0:00:22.9]} 69... Kf6 {[%clk
0:00:20.9]} 70. Na4 {[%clk 0:00:22.4]} 70... Bb3 {[%clk 0:00:19.7]} 71. Nc3
{[%clk 0:00:23]} 71... Bc2 {[%clk 0:00:20.1]} 72. Bc4 {[%clk 0:00:22.5]} 72...
Bb3 {[%clk 0:00:18.4]} 73. Ba6 {[%clk 0:00:18.8]} 73... Be6 {[%clk 0:00:18.2]}
74. Bb7 {[%clk 0:00:18.4]} 74... Ke7 {[%clk 0:00:18.3]} 75. Ba6 {[%clk
0:00:18.3]} 75... Kd6 {[%clk 0:00:18.4]} 76. Bd3 {[%clk 0:00:19]} 76... Kc5
{[%clk 0:00:18.7]} 77. Kf2 {[%clk 0:00:19.5]} 77... Kb4 {[%clk 0:00:19.2]} 78.
Nd1 {[%clk 0:00:19]} 78... Kb3 {[%clk 0:00:19.4]} 79. Ke3 {[%clk 0:00:19.7]}
79... Bg4 {[%clk 0:00:17.9]} 80. Nf2 {[%clk 0:00:19.3]} 80... Bh5 {[%clk
0:00:18.4]} 81. Nh3 {[%clk 0:00:19.2]} 81... Kb2 {[%clk 0:00:18.4]} 82. Nf2
{[%clk 0:00:18.3]} 82... Kc1 {[%clk 0:00:16.6]} 83. Nh1 {[%clk 0:00:14]} 83...
Nf3 {[%clk 0:00:15]} 84. Ng3 {[%clk 0:00:13.9]} 84... Bg4 {[%clk 0:00:14.5]} 85.
Be2 {[%clk 0:00:14.3]} 85... Nh2 {[%clk 0:00:13.5]} 86. Bd3 {[%clk 0:00:12.3]}
86... Kd1 {[%clk 0:00:12.1]} 87. Nf5 {[%clk 0:00:11.1]} 87... Ke1 {[%clk
0:00:10.6]} 88. Nxh6 {[%clk 0:00:10.5]} 88... Bh5 {[%clk 0:00:11.3]} 89. Nf5
{[%clk 0:00:10.6]} 89... Ng4+ {[%clk 0:00:10.9]} 90. Kf3 {[%clk 0:00:10.1]}
90... Nf6+ {[%clk 0:00:11.4]} 91. Kg3 {[%clk 0:00:09.9]} 91... Kd2 {[%clk
0:00:11.7]} 92. Bb1 {[%clk 0:00:10.1]} 92... Kc1 {[%clk 0:00:12]} 93. Bd3 {[%clk
0:00:10.4]} 93... Kd2 {[%clk 0:00:12.5]} 94. Bb1 {[%clk 0:00:09.9]} 94... Kc1
{[%clk 0:00:13]} 95. Ba2 {[%clk 0:00:10.7]} 95... Nxe4+ {[%clk 0:00:12.6]} 96.
Kg2 {[%clk 0:00:11.1]} 96... Kd2 {[%clk 0:00:12.5]} 97. Bd5 {[%clk 0:00:10.3]}
97... Nf6 {[%clk 0:00:12.4]} 98. Be6 {[%clk 0:00:10.4]} 98... e4 {[%clk
0:00:12.3]} 99. Ng3 {[%clk 0:00:09.5]} 99... e3 {[%clk 0:00:11.2]} 100. Bc4
{[%clk 0:00:09.1]} 100... Bg4 {[%clk 0:00:09.5]} 101. Nf1+ {[%clk 0:00:09.2]}
101... Kc3 {[%clk 0:00:08.3]} 102. Nxe3 {[%clk 0:00:07.3]} 102... Bh5 {[%clk
0:00:08.6]} 103. Be6 {[%clk 0:00:06.3]} 103... Kd4 {[%clk 0:00:08.8]} 104. Nc2+
{[%clk 0:00:04.7]} 104... Ke5 {[%clk 0:00:09]} 105. Bh3 {[%clk 0:00:05]} 105...
Kf4 {[%clk 0:00:09.3]} 106. Ne1 {[%clk 0:00:05.1]} 106... Ne4 {[%clk 0:00:09.4]}
107. Nd3+ {[%clk 0:00:05.6]} 107... Ke3 {[%clk 0:00:09.5]} 108. Ne5 {[%clk
0:00:05.8]} 108... Kf4 {[%clk 0:00:08.8]} 109. Nd3+ {[%clk 0:00:06.2]} 109...
Ke3 {[%clk 0:00:08.7]} 110. Ne1 {[%clk 0:00:07.1]} 110... Kf4 {[%clk 0:00:07.9]}
111. Nc2 {[%clk 0:00:07.2]} 111... Bf3+ {[%clk 0:00:08]} 112. Kh2 {[%clk
0:00:07.2]} 112... Bd1 {[%clk 0:00:07.3]} 113. Nd4 {[%clk 0:00:07.6]} 113... Bh5
{[%clk 0:00:07.7]} 114. Ne6+ {[%clk 0:00:07.9]} 114... Ke5 {[%clk 0:00:08.2]}
115. Ng7 {[%clk 0:00:08.5]} 115... Bf7 {[%clk 0:00:07.9]} 116. Bg2 {[%clk
0:00:08.7]} 116... Nf6 {[%clk 0:00:06.5]} 117. Kg3 {[%clk 0:00:07.9]} 117...
Nh5+ {[%clk 0:00:06.6]} 118. Nxh5 {[%clk 0:00:06.8]} 118... Bxh5 {[%clk
0:00:07.5]} 119. Bh3 {[%clk 0:00:07.6]} 119... Bf7 {[%clk 0:00:07.6]} 120. Bf1
{[%clk 0:00:08.2]} 120... Kf6 {[%clk 0:00:08.2]} 121. Be2 {[%clk 0:00:08.8]}
121... Kg7 {[%clk 0:00:09.1]} 122. Kf4 {[%clk 0:00:09.4]} 122... Bg8 {[%clk
0:00:10]} 123. Bf3 {[%clk 0:00:10.3]} 123... Kh8 {[%clk 0:00:10.7]} 124. Bg4
{[%clk 0:00:11.2]} 124... Ba2 {[%clk 0:00:11.2]} 125. Kg5 {[%clk 0:00:12.1]}
125... Bg8 {[%clk 0:00:12.1]} 126. Kh6 {[%clk 0:00:12.9]} 126... Ba2 {[%clk
0:00:13]} 127. h5 {[%clk 0:00:13.6]} 127... Bg8 {[%clk 0:00:13.9]} 128. Kg5
{[%clk 0:00:14.3]} 128... Ba2 {[%clk 0:00:14.8]} 129. h6 {[%clk 0:00:15.2]}
129... Bg8 {[%clk 0:00:15.6]} 130. Kf6 {[%clk 0:00:16.1]} 130... Bh7 {[%clk
0:00:16]} 131. Bf5 {[%clk 0:00:17]} 131... Bxf5 {[%clk 0:00:16.2]} 132. Kxf5
{[%clk 0:00:17.9]} 132... Kh7 {[%clk 0:00:17.1]} 133. Kg5 {[%clk 0:00:18]}
133... Kh8 {[%clk 0:00:17.4]} 134. Kg6 {[%clk 0:00:18.9]} 134... Kg8 {[%clk
0:00:17.9]} 135. h7+ {[%clk 0:00:19.8]} 135... Kh8 {[%clk 0:00:18.8]} 136. Kh6
{[%clk 0:00:20.7]} 1/2-1/2

[Event "Early-Titled-Tuesday-Blitz-October-03-2023"]
[Site "Chess.com"]
[Date "2023.10.03"]
[Round "3"]
[White "inegrepus"]
[Black "MMAHDI2013"]
[Result "1/2-1/2"]
[WhiteElo "2184"]
[BlackElo "2386"]
[TimeControl "180+1"]
[EndTime "8:22:31 PDT"]
[Termination "Game drawn by repetition"]

1. d4 {[%clk 0:03:00]} 1... Nf6 {[%clk 0:02:59.5]} 2. c4 {[%clk 0:03:00.4]} 2...
e6 {[%clk 0:02:59.1]} 3. g3 {[%clk 0:03:00.3]} 3... Bb4+ {[%clk 0:02:58.4]} 4.
Bd2 {[%clk 0:03:00.4]} 4... Be7 {[%clk 0:02:58.5]} 5. Bg2 {[%clk 0:03:00.9]}
5... O-O {[%clk 0:02:58.9]} 6. Nf3 {[%clk 0:03:01.4]} 6... d5 {[%clk 0:02:59.5]}
7. O-O {[%clk 0:03:01.3]} 7... c6 {[%clk 0:02:59.5]} 8. Qc2 {[%clk 0:03:01.7]}
8... Nbd7 {[%clk 0:03:00]} 9. Bf4 {[%clk 0:02:58]} 9... b6 {[%clk 0:03:00.2]}
10. Nbd2 {[%clk 0:02:54.3]} 10... Nh5 {[%clk 0:02:59.1]} 11. Be3 {[%clk
0:02:51.7]} 11... Nhf6 {[%clk 0:02:58.9]} 12. Bf4 {[%clk 0:02:51.5]} 12... Nh5
{[%clk 0:02:59]} 13. Be3 {[%clk 0:02:51.6]} 13... Nhf6 {[%clk 0:02:58.2]} 14.
Bf4 {[%clk 0:02:52.1]} 1/2-1/2

[Event "Early-Titled-Tuesday-Blitz-October-03-2023"]
[Site "Chess.com"]
[Date "2023.10.03"]
[Round "3"]
[White "AEMEffi"]
[Black "microbear"]
[Result "1-0"]
[WhiteElo "2392"]
[BlackElo "2195"]
[TimeControl "180+1"]
[EndTime "8:23:11 PDT"]
[Termination "AEMEffi won by resignation"]

1. d4 {[%clk 0:03:00]} 1... Nf6 {[%clk 0:03:00.9]} 2. c4 {[%clk 0:03:00.9]} 2...
g6 {[%clk 0:03:01]} 3. Nc3 {[%clk 0:03:00.5]} 3... Bg7 {[%clk 0:03:01.4]} 4. e4
{[%clk 0:03:00.4]} 4... d6 {[%clk 0:03:01.6]} 5. h3 {[%clk 0:03:01.3]} 5... O-O
{[%clk 0:03:01.4]} 6. Nf3 {[%clk 0:03:02.2]} 6... e5 {[%clk 0:03:01.4]} 7. d5
{[%clk 0:03:01.5]} 7... c5 {[%clk 0:02:52.9]} 8. Be3 {[%clk 0:03:00.6]} 8... Nh5
{[%clk 0:02:51.1]} 9. Nd2 {[%clk 0:03:00.6]} 9... f5 {[%clk 0:02:49.9]} 10. exf5
{[%clk 0:02:59.4]} 10... Nf4 {[%clk 0:02:46.9]} 11. g3 {[%clk 0:02:50.6]} 11...
Nh5 {[%clk 0:02:46.1]} 12. fxg6 {[%clk 0:02:49.2]} 12... hxg6 {[%clk 0:02:45.5]}
13. Bd3 {[%clk 0:02:48.9]} 13... Qe8 {[%clk 0:02:33.6]} 14. Nde4 {[%clk
0:02:45]} 1-0

[Event "Early-Titled-Tuesday-Blitz-October-03-2023"]
[Site "Chess.com"]
[Date "2023.10.03"]
[Round "3"]
[White "Arystanner"]
[Black "ArmanGhevondyanchess"]
[Result "1-0"]
[WhiteElo "2831"]
[BlackElo "2577"]
[TimeControl "180+1"]
[EndTime "8:24:35 PDT"]
[Termination "Arystanner won by checkmate"]

1. e4 {[%clk 0:03:00.9]} 1... c5 {[%clk 0:02:58.7]} 2. Nf3 {[%clk 0:03:01.1]}
2... Nc6 {[%clk 0:02:56.1]} 3. Bb5 {[%clk 0:03:00.8]} 3... g6 {[%clk 0:02:56.5]}
4. O-O {[%clk 0:03:01]} 4... Bg7 {[%clk 0:02:56.5]} 5. c3 {[%clk 0:03:01.5]}
5... Nf6 {[%clk 0:02:55.2]} 6. e5 {[%clk 0:03:02]} 6... Nd5 {[%clk 0:02:55.5]}
7. d4 {[%clk 0:03:02.6]} 7... cxd4 {[%clk 0:02:55.7]} 8. cxd4 {[%clk 0:03:03.5]}
8... O-O {[%clk 0:02:55.9]} 9. Nc3 {[%clk 0:03:04]} 9... Nc7 {[%clk 0:02:53.1]}
10. Bf4 {[%clk 0:03:03.5]} 10... Nxb5 {[%clk 0:02:51.4]} 11. Nxb5 {[%clk
0:03:04.4]} 11... a6 {[%clk 0:02:51.8]} 12. Nc3 {[%clk 0:03:04.6]} 12... d5
{[%clk 0:02:50.5]} 13. exd6 {[%clk 0:03:05.5]} 13... exd6 {[%clk 0:02:50.8]} 14.
d5 {[%clk 0:03:06]} 14... Ne5 {[%clk 0:02:50.7]} 15. Nxe5 {[%clk 0:03:06.5]}
15... dxe5 {[%clk 0:02:49]} 16. Be3 {[%clk 0:03:06.9]} 16... f5 {[%clk
0:02:46.9]} 17. Bc5 {[%clk 0:03:07]} 17... Rf7 {[%clk 0:02:46.6]} 18. d6 {[%clk
0:03:07.4]} 18... Be6 {[%clk 0:02:45.7]} 19. Nd5 {[%clk 0:03:07.9]} 19... Bxd5
{[%clk 0:02:42.8]} 20. Qxd5 {[%clk 0:03:07.8]} 20... Qd7 {[%clk 0:02:42.6]} 21.
Rac1 {[%clk 0:03:03.7]} 21... Rc8 {[%clk 0:02:35.9]} 22. Bb4 {[%clk 0:02:47.9]}
22... Rc6 {[%clk 0:02:31.1]} 23. Rfd1 {[%clk 0:02:45.9]} 23... Kh8 {[%clk
0:02:21.4]} 24. Rxc6 {[%clk 0:02:43.9]} 24... bxc6 {[%clk 0:02:21.6]} 25. Qc4
{[%clk 0:02:44.3]} 25... Qb7 {[%clk 0:02:12.7]} 26. Bc3 {[%clk 0:02:43.1]} 26...
Rd7 {[%clk 0:01:33.2]} 27. Qe6 {[%clk 0:02:39.6]} 27... e4 {[%clk 0:01:33.7]}
28. Qe8# {[%clk 0:02:38.9]} 1-0

[Event "Early-Titled-Tuesday-Blitz-October-03-2023"]
[Site "Chess.com"]
[Date "2023.10.03"]
[Round "3"]
[White "Javylavilla"]
[Black "deribas12345"]
[Result "1-0"]
[WhiteElo "2373"]
[BlackElo "2556"]
[TimeControl "180+1"]
[EndTime "8:24:35 PDT"]
[Termination "Javylavilla won by checkmate"]

1. e4 {[%clk 0:03:00.9]} 1... c5 {[%clk 0:02:57.9]} 2. Nf3 {[%clk 0:03:00.2]}
2... d6 {[%clk 0:02:57.1]} 3. d4 {[%clk 0:02:59.8]} 3... cxd4 {[%clk 0:02:57]}
4. Nxd4 {[%clk 0:03:00.4]} 4... Nf6 {[%clk 0:02:57.5]} 5. Nc3 {[%clk 0:03:01]}
5... a6 {[%clk 0:02:57.3]} 6. Bg5 {[%clk 0:03:01.2]} 6... e6 {[%clk 0:02:56.5]}
7. f4 {[%clk 0:03:00.9]} 7... Be7 {[%clk 0:02:55.7]} 8. Qf3 {[%clk 0:03:00.3]}
8... h6 {[%clk 0:02:47.4]} 9. Bh4 {[%clk 0:02:56.8]} 9... Qc7 {[%clk 0:02:43.3]}
10. O-O-O {[%clk 0:02:56.1]} 10... Nbd7 {[%clk 0:02:42.5]} 11. Bxf6 {[%clk
0:02:52.2]} 11... Bxf6 {[%clk 0:02:39.8]} 12. g4 {[%clk 0:02:52.6]} 12... b5
{[%clk 0:02:25.9]} 13. Bxb5 {[%clk 0:02:39.7]} 13... axb5 {[%clk 0:02:25.5]} 14.
Ndxb5 {[%clk 0:02:39.4]} 14... Qb8 {[%clk 0:02:25.6]} 15. Nxd6+ {[%clk
0:02:38.9]} 15... Kf8 {[%clk 0:02:25.9]} 16. e5 {[%clk 0:02:39]} 16... Be7
{[%clk 0:02:25.2]} 17. Nxc8 {[%clk 0:02:36.3]} 17... Qxc8 {[%clk 0:02:24.6]} 18.
Rxd7 {[%clk 0:02:37]} 18... Bb4 {[%clk 0:02:13.4]} 19. Rhd1 {[%clk 0:02:32.9]}
19... Bxc3 {[%clk 0:02:02.9]} 20. Qxa8 {[%clk 0:02:09.2]} 20... Qxa8 {[%clk
0:01:52.6]} 21. Rd8+ {[%clk 0:02:08.9]} 21... Ke7 {[%clk 0:01:53.3]} 22. R1d7#
{[%clk 0:02:07.8]} 1-0

[Event "Early-Titled-Tuesday-Blitz-October-03-2023"]
[Site "Chess.com"]
[Date "2023.10.03"]
[Round "3"]
[White "MatyChess1"]
[Black "venturov"]
[Result "1-0"]
[WhiteElo "2734"]
[BlackElo "2485"]
[TimeControl "180+1"]
[EndTime "8:24:58 PDT"]
[Termination "MatyChess1 won by resignation"]

1. d4 {[%clk 0:03:00.9]} 1... Nf6 {[%clk 0:02:59.2]} 2. Bf4 {[%clk 0:03:01.5]}
2... e6 {[%clk 0:02:58.8]} 3. e3 {[%clk 0:03:02]} 3... c5 {[%clk 0:02:59.1]} 4.
Nf3 {[%clk 0:03:01.7]} 4... cxd4 {[%clk 0:02:59.1]} 5. exd4 {[%clk 0:03:02]}
5... b6 {[%clk 0:02:59.8]} 6. Nc3 {[%clk 0:03:02.4]} 6... Bb4 {[%clk 0:02:51.3]}
7. Bd3 {[%clk 0:02:47.7]} 7... O-O {[%clk 0:02:50.7]} 8. O-O {[%clk 0:02:47.6]}
8... Ba6 {[%clk 0:02:51.4]} 9. Nb5 {[%clk 0:02:38.7]} 9... Bxb5 {[%clk
0:02:37.6]} 10. Bxb5 {[%clk 0:02:39.6]} 10... a6 {[%clk 0:02:32.8]} 11. Bd3
{[%clk 0:02:39.4]} 11... b5 {[%clk 0:02:33.5]} 12. a4 {[%clk 0:02:37.3]} 12...
bxa4 {[%clk 0:02:23.1]} 13. Rxa4 {[%clk 0:02:38.2]} 13... Be7 {[%clk 0:02:21.1]}
14. Qe2 {[%clk 0:02:35.7]} 14... d6 {[%clk 0:02:19.5]} 15. Rfa1 {[%clk
0:02:35.1]} 15... Nd5 {[%clk 0:02:17.9]} 16. Bd2 {[%clk 0:02:33.5]} 16... Qb6
{[%clk 0:02:13.1]} 17. b3 {[%clk 0:02:28.3]} 17... Bf6 {[%clk 0:02:04.9]} 18. c4
{[%clk 0:02:18.7]} 18... Nc7 {[%clk 0:02:02]} 19. Ba5 {[%clk 0:02:18.9]} 19...
Qa7 {[%clk 0:01:20.2]} 20. Bxc7 {[%clk 0:02:17.5]} 20... g6 {[%clk 0:01:20.8]}
21. Bxd6 {[%clk 0:02:16.4]} 21... Nc6 {[%clk 0:01:16.8]} 1-0

[Event "Early-Titled-Tuesday-Blitz-October-03-2023"]
[Site "Chess.com"]
[Date "2023.10.03"]
[Round "3"]
[White "GeorgiosSouleidis"]
[Black "Casper"]
[Result "1-0"]
[WhiteElo "2604"]
[BlackElo "2396"]
[TimeControl "180+1"]
[EndTime "8:25:03 PDT"]
[Termination "GeorgiosSouleidis won by resignation"]

1. e4 {[%clk 0:03:00.9]} 1... c5 {[%clk 0:02:54.2]} 2. Be2 {[%clk 0:03:00.1]}
2... g6 {[%clk 0:02:50.5]} 3. d3 {[%clk 0:03:00.3]} 3... Bg7 {[%clk 0:02:51.4]}
4. f4 {[%clk 0:03:00.9]} 4... Nc6 {[%clk 0:02:50]} 5. Nf3 {[%clk 0:03:01.4]}
5... e5 {[%clk 0:02:49.8]} 6. O-O {[%clk 0:03:00.9]} 6... d5 {[%clk 0:02:48.7]}
7. exd5 {[%clk 0:02:58.7]} 7... Qxd5 {[%clk 0:02:48.2]} 8. Nc3 {[%clk
0:02:59.2]} 8... Qd8 {[%clk 0:02:47]} 9. fxe5 {[%clk 0:02:56.7]} 9... Nxe5
{[%clk 0:02:46]} 10. Nxe5 {[%clk 0:02:54.7]} 10... Bxe5 {[%clk 0:02:46.9]} 11.
Qe1 {[%clk 0:02:46.7]} 11... Be6 {[%clk 0:02:14.4]} 12. Bf3 {[%clk 0:02:40.2]}
12... Qc7 {[%clk 0:01:59.5]} 13. Nd5 {[%clk 0:02:13]} 13... Qd6 {[%clk
0:01:36.1]} 14. Bf4 {[%clk 0:01:48.1]} 14... Bxf4 {[%clk 0:01:30.1]} 15. Nxf4
{[%clk 0:01:49]} 15... Qxf4 {[%clk 0:01:29.9]} 16. Bc6+ {[%clk 0:01:48.6]} 1-0

[Event "Early-Titled-Tuesday-Blitz-October-03-2023"]
[Site "Chess.com"]
[Date "2023.10.03"]
[Round "3"]
[White "JosefineHeinemann"]
[Black "Fore_Man"]
[Result "1-0"]
[WhiteElo "2524"]
[BlackElo "2257"]
[TimeControl "180+1"]
[EndTime "8:25:32 PDT"]
[Termination "JosefineHeinemann won by resignation"]

1. Nf3 {[%clk 0:03:00.9]} 1... Nf6 {[%clk 0:02:59.9]} 2. d4 {[%clk 0:02:59.8]}
2... d5 {[%clk 0:02:59.4]} 3. g3 {[%clk 0:02:57.8]} 3... c5 {[%clk 0:02:59.8]}
4. Bg2 {[%clk 0:02:44.5]} 4... cxd4 {[%clk 0:03:00.2]} 5. O-O {[%clk 0:02:43.7]}
5... Bg4 {[%clk 0:02:56.3]} 6. Bg5 {[%clk 0:02:35.2]} 6... Bxf3 {[%clk
0:02:53.1]} 7. Bxf3 {[%clk 0:02:34.9]} 7... e5 {[%clk 0:02:53.5]} 8. c4 {[%clk
0:02:27]} 8... dxc4 {[%clk 0:02:43.6]} 9. Bxb7 {[%clk 0:02:20.7]} 9... Nbd7
{[%clk 0:02:44.2]} 10. Bxa8 {[%clk 0:02:17.2]} 10... Qxa8 {[%clk 0:02:45.1]} 11.
Qa4 {[%clk 0:02:16.2]} 11... Qc8 {[%clk 0:02:42]} 12. Qxa7 {[%clk 0:02:15.1]}
12... Bc5 {[%clk 0:02:42.5]} 13. Qa4 {[%clk 0:02:13.2]} 13... d3 {[%clk
0:02:40.1]} 14. exd3 {[%clk 0:02:11.4]} 14... cxd3 {[%clk 0:02:41]} 15. Nc3
{[%clk 0:02:08.3]} 15... O-O {[%clk 0:02:39.1]} 16. Rad1 {[%clk 0:02:05.1]}
16... Bd4 {[%clk 0:02:33.3]} 17. Bxf6 {[%clk 0:01:57.6]} 17... gxf6 {[%clk
0:02:32.6]} 18. Nd5 {[%clk 0:01:46.2]} 18... Nc5 {[%clk 0:02:27.1]} 19. Ne7+
{[%clk 0:01:19]} 19... Kg7 {[%clk 0:02:27.1]} 20. Qxd4 {[%clk 0:01:15.4]} 20...
exd4 {[%clk 0:02:19.6]} 21. Nxc8 {[%clk 0:01:15.4]} 21... Rxc8 {[%clk
0:02:20.5]} 22. b4 {[%clk 0:01:15.3]} 22... Ne4 {[%clk 0:02:14.9]} 23. Rxd3
{[%clk 0:01:13.3]} 23... Rc4 {[%clk 0:02:15.8]} 24. a3 {[%clk 0:01:12.2]} 24...
Nc3 {[%clk 0:02:14.9]} 25. Kg2 {[%clk 0:01:09.5]} 25... Nb5 {[%clk 0:02:12.9]}
26. Rfd1 {[%clk 0:01:01.9]} 1-0

[Event "Early-Titled-Tuesday-Blitz-October-03-2023"]
[Site "Chess.com"]
[Date "2023.10.03"]
[Round "3"]
[White "tdf98pantani"]
[Black "Goi_Manne"]
[Result "0-1"]
[WhiteElo "2655"]
[BlackElo "2291"]
[TimeControl "180+1"]
[EndTime "8:25:48 PDT"]
[Termination "Goi_Manne won by resignation"]

1. c4 {[%clk 0:03:00.9]} 1... c6 {[%clk 0:02:57.3]} 2. e4 {[%clk 0:03:00.6]}
2... d5 {[%clk 0:02:56.3]} 3. exd5 {[%clk 0:03:00.8]} 3... cxd5 {[%clk
0:02:57.2]} 4. cxd5 {[%clk 0:03:01.3]} 4... Nf6 {[%clk 0:02:57.9]} 5. Nc3 {[%clk
0:03:01.5]} 5... Nxd5 {[%clk 0:02:57.4]} 6. Nf3 {[%clk 0:03:01.7]} 6... Nxc3
{[%clk 0:02:57.5]} 7. bxc3 {[%clk 0:03:01.2]} 7... g6 {[%clk 0:02:57.8]} 8. Bb5+
{[%clk 0:02:59.9]} 8... Bd7 {[%clk 0:02:57.8]} 9. a4 {[%clk 0:02:59.1]} 9... Bg7
{[%clk 0:02:57.7]} 10. O-O {[%clk 0:02:58]} 10... O-O {[%clk 0:02:57.9]} 11. Re1
{[%clk 0:02:56.4]} 11... Nc6 {[%clk 0:02:57.1]} 12. Ba3 {[%clk 0:02:55.7]} 12...
Re8 {[%clk 0:02:56.9]} 13. d4 {[%clk 0:02:52.1]} 13... e6 {[%clk 0:02:57.1]} 14.
h4 {[%clk 0:02:46.7]} 14... a6 {[%clk 0:02:54.2]} 15. Bxc6 {[%clk 0:02:39.7]}
15... Bxc6 {[%clk 0:02:55.1]} 16. h5 {[%clk 0:02:34.3]} 16... Bxf3 {[%clk
0:02:43.9]} 17. Qxf3 {[%clk 0:02:33.7]} 17... Qd5 {[%clk 0:02:44.5]} 18. Qxd5
{[%clk 0:02:30]} 18... exd5 {[%clk 0:02:45.4]} 19. Rxe8+ {[%clk 0:02:20.1]}
19... Rxe8 {[%clk 0:02:44.3]} 20. Rb1 {[%clk 0:02:20.6]} 20... gxh5 {[%clk
0:02:33.3]} 21. Rxb7 {[%clk 0:02:17.8]} 21... Bh6 {[%clk 0:02:28]} 22. Bd6
{[%clk 0:02:04.8]} 22... Bd2 {[%clk 0:02:16.6]} 23. Rc7 {[%clk 0:02:03.1]} 23...
Re6 {[%clk 0:02:09.3]} 24. Be5 {[%clk 0:01:54.4]} 24... f6 {[%clk 0:02:08.5]}
25. Bg3 {[%clk 0:01:52.5]} 25... Re1+ {[%clk 0:02:02.1]} 26. Kh2 {[%clk
0:01:52.2]} 26... Rc1 {[%clk 0:02:02.6]} 27. Rc6 {[%clk 0:01:44.7]} 27... Bxc3
{[%clk 0:01:59.7]} 28. Bh4 {[%clk 0:01:28.9]} 28... Bb2 {[%clk 0:01:51.9]} 29.
Rxa6 {[%clk 0:01:21.8]} 29... Bxd4 {[%clk 0:01:50.1]} 30. Rd6 {[%clk 0:01:21.3]}
30... Be5+ {[%clk 0:01:49.5]} 31. Bg3 {[%clk 0:01:20.4]} 31... Bxd6 {[%clk
0:01:49]} 32. Bxd6 {[%clk 0:01:21]} 32... Ra1 {[%clk 0:01:47.5]} 0-1